fUST/lending_fUST_20250618
["ID","MTS","AMOUNT","RATE_DAILY","PERIOD"]
[366361040,1750211437340,-215.65,0.00023452,6]
[366361042,1750211437352,-151.0,0.00023507,6]
[366361044,1750211437365,-151.0,0.00023507,6]
[366361046,1750211437378,-311.160597,0.0002352,3]
[366361047,1750211437390,-151.0,0.00023534,6]
[366361048,1750211437402,-209.85941507,0.00023534,6]
[366361049,1750211437416,-309.88538147,0.00023555,9]
[366361050,1750211437427,-579.13,0.00023561,6]
[366361051,1750211437437,-860.62,0.00023561,6]
[366361053,1750211437448,-166.78661871,0.00023562,6]
[366361055,1750211437459,-168.0,0.00023565,2]
[366361057,1750211437470,-1213.28,0.00023598,2]
[366361059,1750211437483,-168.0,0.00023626,2]
[366361061,1750211437494,-579.13,0.00023671,6]
[366361063,1750211437508,-860.62,0.00023671,6]
[366361065,1750211437520,-309.88538147,0.00023693,9]
[366361067,1750211437531,-168.0,0.00023747,2]
[366361069,1750211437541,-579.13,0.0002378,6]
[366361070,1750211437552,-860.62,0.0002378,6]
[366361072,1750211437564,-309.88538147,0.00023831,10]
[366361074,1750211437575,-168.0,0.00023842,2]
[366361077,1750211437587,-168.0,0.00023843,2]
[366361079,1750211437599,-168.0,0.00023888,2]
[366361081,1750211437610,-579.13,0.0002389,6]
[366361082,1750211437621,-860.62,0.0002389,6]
[366361085,1750211437632,-160.300303,0.0002389,2]
[366361087,1750211437643,-309.88538147,0.00023969,10]
[366361089,1750211437654,-115926.34089,0.00023972,2]
[366361091,1750211437666,-292.09781647,0.00023972,2]
[366361093,1750211437677,-500.0,0.00023972,2]
[366361095,1750211437688,-154.49840657,0.00023972,2]
[366361097,1750211437699,-500.0,0.00023972,2]
[366361099,1750211437711,-500.0,0.00023972,2]
[366361101,1750211437722,-500.0,0.00023972,2]
[366361103,1750211437733,-428.7330019,0.00023972,2]
[366361130,1750211437983,-153.035578,0.00023972,7]
[366361132,1750211437994,-497.14557421,0.00023973,2]
[366361134,1750211438005,-500.0,0.00023973,2]
[366361136,1750211438016,-501.58129793,0.00023973,2]
[366361138,1750211438027,-600.0,0.00023973,2]
[366361140,1750211438038,-500.0,0.00023973,2]
[366361142,1750211438050,-502.90818409,0.00023973,2]
[366361144,1750211438061,-500.0,0.00023973,2]
[366361147,1750211438072,-500.0,0.00023973,2]
[366361149,1750211438084,-500.0,0.00023973,2]
[366361151,1750211438094,-500.0,0.00023973,2]
[366361153,1750211438103,-500.0,0.00023973,2]
[366361154,1750211438113,-156.3126765,0.00023973,2]
[366361156,1750211438122,-573.58605056,0.00023998,5]
[366361157,1750211438132,-13796.85161153,0.00024,2]
[366361159,1750211438141,-9522.15832907,0.00024,2]
[366361161,1750211438152,-86130.47566375,0.00024,7]
[366361164,1750211438163,-475.95853526,0.00024,7]
[366361166,1750211438175,-342.75407338,0.00024,7]
[366361168,1750211438187,-1130.70957906,0.00024,7]
[366361250,1750211440250,-500.0,0.00023999,2]
[366361252,1750211440261,-500.0,0.00023999,2]
[366361254,1750211440270,-179.52898403,0.00023999,2]
[366361256,1750211440280,-500.0,0.00023999,2]
[366361258,1750211440290,-467.90735636,0.00024,7]
[366361372,1750211446403,-192.4626522,0.00021917,6]
[366361375,1750211603874,2581.54,0.00025153,120]
[366361376,1750212197824,5000.0,0.000191,4]
[366361377,1750212341008,1346.0,0.00025155,120]
[366361378,1750212342145,-374.73219785,0.0001978,2]
[366361379,1750212348086,-13.89780215,0.0001978,2]
[366361380,1750212348108,-5000.0,0.00019783,4]
[366361381,1750212348130,-300.0,0.00020579,2]
[366361382,1750212348152,-25.56870967,0.00020579,2]
[366361383,1750212433089,-383.68,0.00019736,2]
[366361384,1750212433111,-4439.96236399,0.00020373,2]
[366361385,1750212438085,-560.03763601,0.00020373,2]
[366361386,1750212438107,-214.43129033,0.00020579,2]
[366361387,1750212438129,-300.0,0.00020579,2]
[366361388,1750212438150,-575.51683113,0.0002058,2]
[366361389,1750212460958,162.240238,0.00013699,2]
[366361390,1750212547102,-378.8,0.00019781,2]
[366361391,1750212547125,-5000.0,0.00020374,2]
[366361392,1750212547147,-300.0,0.00020579,2]
[366361393,1750212547167,-16645.28218545,0.0002058,2]
[366361394,1750212552174,-475.82492112,0.0002058,2]
[366361395,1750212552195,-585.64906696,0.0002158,2]
[366361404,1750212632206,-150.0,0.000189,2]
[366361405,1750212632216,-366.53,0.00019737,2]
[366361406,1750212632225,-2113.01704602,0.00020673,2]
[366361407,1750212632235,-256.2088349,0.00020882,2]
[366361408,1750212632245,-733.05,0.00021531,2]
[366361409,1750212632254,-250.0,0.00021609,2]
[366361410,1750212632264,-529.289144,0.0002181,14]
[366361411,1750212632273,-161.77623661,0.00021817,2]
[366361412,1750212632283,-529.289144,0.00021845,7]
[366361413,1750212632293,-529.289144,0.0002188,6]
[366361414,1750212632302,-206.60101032,0.000219,6]
[366361415,1750212632312,-465.15138494,0.000219,2]
[366361416,1750212632321,-529.289144,0.00021916,8]
[366361417,1750212632331,-500.0,0.00021916,2]
[366361418,1750212632340,-189.18681845,0.00021916,2]
[366361419,1750212632350,-300.0,0.00021916,2]
[366361420,1750212632361,-349.21815837,0.00021917,6]
[366361421,1750212632370,-463.85370101,0.00021917,6]
[366361422,1750212632381,-476.99302752,0.00021917,6]
[366361423,1750212632390,-460.0,0.00021917,6]
[366361424,1750212632399,-460.0,0.00021917,6]
[366361425,1750212632409,-460.0,0.00021917,6]
[366361426,1750212632418,-460.0,0.00021917,6]
[366361427,1750212632427,-460.0,0.00021917,6]
[366361428,1750212632436,-460.0,0.00021917,6]
[366361429,1750212632445,-451.32569262,0.00021917,6]
[366361430,1750212632455,-444.97428935,0.00021917,6]
[366361431,1750212632464,-454.72444939,0.00021917,6]
[366361432,1750212632473,-439.92132542,0.00021917,6]
[366361433,1750212632482,-457.76852083,0.00021917,6]
[366361434,1750212632492,-451.70702414,0.00021917,6]
[366361435,1750212632501,-426.70478556,0.00021917,6]
[366361436,1750212632511,-466.51696248,0.00021917,6]
[366361438,1750212632521,-403.39731089,0.00021917,6]
[366361440,1750212632531,-436.32323913,0.00021917,6]
[366361442,1750212632540,-444.1297374,0.00021917,6]
[366361444,1750212632550,-444.12844245,0.00021917,6]
[366361445,1750212632559,-461.79159468,0.00021917,6]
[366361447,1750212632567,-460.63396113,0.00021917,6]
[366361449,1750212632577,-450.95699226,0.00021917,6]
[366361451,1750212632586,-469.67598391,0.00021917,6]
[366361453,1750212632594,-445.15748064,0.00021917,6]
[366361455,1750212632603,-460.0,0.00021917,6]
[366361456,1750212632613,-445.62785935,0.00021917,6]
[366361457,1750212632622,-453.07885821,0.00021917,6]
[366361458,1750212632632,-462.65495245,0.00021917,6]
[366361459,1750212632641,-460.0,0.00021917,6]
[366361460,1750212632651,-165.19926147,0.00021917,6]
[366361461,1750212632661,-291.32123491,0.00021917,6]
[366361462,1750212632670,-446.91531322,0.00021917,6]
[366361463,1750212632680,-460.0,0.00021917,6]
[366361465,1750212632690,-468.53419333,0.00021917,6]
[366361466,1750212632699,-429.10093132,0.00021917,6]
[366361468,1750212632709,-460.0,0.00021917,6]
[366361470,1750212632718,-439.2491385,0.00021917,6]
[366361472,1750212632728,-337.05652895,0.00021917,6]
[366361474,1750212632737,-460.0,0.00021917,6]
[366361476,1750212632747,-422.50230501,0.00021917,6]
[366361478,1750212632756,-443.53890447,0.00021917,6]
[366361480,1750212632770,-447.03065936,0.00021917,6]
[366361482,1750212632779,-507.19190227,0.00021917,6]
[366361484,1750212632789,-433.30474915,0.00021917,6]
[366361486,1750212632800,-450.5803812,0.00021917,6]
[366361488,1750212632811,-463.57681198,0.00021917,6]
[366361490,1750212632821,-438.24178264,0.00021917,6]
[366361492,1750212632830,-457.0897974,0.00021917,6]
[366361494,1750212632840,-445.67075369,0.00021917,6]
[366361496,1750212632851,-454.13295142,0.00021917,6]
[366361498,1750212632860,-437.25744773,0.00021917,6]
[366361500,1750212632869,-452.30620547,0.00021917,6]
[366361502,1750212632879,-442.06120477,0.00021917,6]
[366361504,1750212632888,-563.38037945,0.00021917,6]
[366361506,1750212632897,-454.06921236,0.00021917,6]
[366361508,1750212632906,-452.70361655,0.00021917,6]
[366361509,1750212632915,-440.65827832,0.00021917,6]
[366361510,1750212632925,-443.813124,0.00021917,6]
[366361511,1750212632933,-449.70749761,0.00021917,6]
[366361512,1750212632942,-443.52064468,0.00021917,6]
[366361513,1750212632951,-455.23771196,0.00021917,6]
[366361514,1750212632959,-452.47968654,0.00021917,6]
[366361515,1750212632968,-448.7111393,0.00021917,6]
[366361516,1750212632977,-496.43851867,0.00021917,6]
[366361517,1750212632985,-446.54800788,0.00021917,6]
[366361518,1750212632995,-577.95137339,0.00021917,6]
[366361519,1750212633004,-460.0,0.00021917,6]
[366361520,1750212633013,-456.16819811,0.00021917,6]
[366361521,1750212633023,-444.55079759,0.00021917,6]
[366361522,1750212633033,-500.0,0.00021917,6]
[366361523,1750212633043,-506.43991091,0.00021917,6]
[366361524,1750212633053,-460.0,0.00021917,6]
[366361525,1750212633062,-414.36450241,0.00021917,6]
[366361526,1750212633073,-446.64522115,0.00021917,6]
[366361527,1750212633086,-419.33104183,0.00021917,6]
[366361528,1750212633095,-426.80718336,0.00021917,6]
[366361529,1750212633105,-439.6877774,0.00021917,6]
[366361530,1750212633115,-434.05480943,0.00021917,6]
[366361531,1750212633126,-425.08190964,0.00021917,6]
[366361532,1750212633135,-462.11677295,0.00021917,6]
[366361533,1750212633145,-424.21525838,0.00021917,6]
[366361534,1750212633155,-460.0,0.00021917,6]
[366361535,1750212633164,-369.37446968,0.00021917,6]
[366361536,1750212633173,-444.42627129,0.00021917,6]
[366361537,1750212633183,-457.26486344,0.00021917,6]
[366361538,1750212633192,-460.0,0.00021917,6]
[366361539,1750212633202,-460.0,0.00021917,6]
[366361540,1750212633211,-351.27161333,0.00021917,6]
[366361541,1750212633220,-413.93526834,0.00021917,6]
[366361542,1750212633230,-458.47781786,0.00021917,6]
[366361543,1750212633239,-460.0,0.00021917,6]
[366361544,1750212633248,-460.0,0.00021917,6]
[366361545,1750212633258,-423.31485761,0.00021917,6]
[366361546,1750212633268,-442.61110487,0.00021917,6]
[366361547,1750212633278,-487.84857995,0.00021917,6]
[366361548,1750212633288,-460.0,0.00021917,6]
[366361549,1750212633297,-441.01687884,0.00021917,6]
[366361550,1750212633307,-460.0,0.00021917,6]
[366361551,1750212633317,-462.14884584,0.00021917,6]
[366361552,1750212633327,-460.0,0.00021917,6]
[366361553,1750212633337,-460.0,0.00021917,6]
[366361554,1750212633346,-412.96813616,0.00021917,6]
[366361555,1750212633356,-460.0,0.00021917,6]
[366361556,1750212633366,-425.48213205,0.00021917,6]
[366361557,1750212633376,-460.0,0.00021917,6]
[366361558,1750212633386,-460.0,0.00021917,6]
[366361559,1750212633396,-460.0,0.00021917,6]
[366361560,1750212633406,-439.36287977,0.00021917,6]
[366361561,1750212633416,-460.0,0.00021917,6]
[366361562,1750212633426,-460.0,0.00021917,6]
[366361563,1750212633436,-420.0,0.00021917,6]
[366361564,1750212633446,-269.43252074,0.00021917,6]
[366361565,1750212633456,-460.0,0.00021917,6]
[366361566,1750212633466,-460.0,0.00021917,6]
[366361567,1750212633476,-460.0,0.00021917,6]
[366361568,1750212633486,-460.0,0.00021917,6]
[366361569,1750212633496,-460.0,0.00021917,6]
[366361570,1750212633506,-460.0,0.00021917,6]
[366361571,1750212633516,-460.0,0.00021917,6]
[366361572,1750212633526,-479.12191682,0.00021917,6]
[366361573,1750212633535,-460.0,0.00021917,6]
[366361574,1750212633545,-407.4488798,0.00021917,6]
[366361575,1750212633555,-460.0,0.00021917,6]
[366361576,1750212633565,-460.0,0.00021917,6]
[366361577,1750212633575,-503.73662367,0.00021917,6]
[366361578,1750212633584,-460.0,0.00021917,6]
[366361579,1750212633594,-451.55330737,0.00021917,6]
[366361580,1750212633603,-507.7922861,0.00021917,6]
[366361581,1750212633613,-455.93092482,0.00021917,6]
[366361582,1750212633623,-485.52202973,0.00021917,6]
[366361583,1750212633633,-460.0,0.00021917,6]
[366361584,1750212633643,-460.0,0.00021917,6]
[366361585,1750212633653,-460.0,0.00021917,6]
[366361586,1750212633662,-475.36635775,0.00021917,6]
[366361587,1750212633672,-460.0,0.00021917,6]
[366361588,1750212633682,-460.0,0.00021917,6]
[366361589,1750212633691,-460.0,0.00021917,6]
[366361590,1750212633701,-460.0,0.00021917,6]
[366361591,1750212633711,-392.91123523,0.00021917,2]
[366361592,1750212633720,-460.0,0.00021917,6]
[366361593,1750212633730,-460.0,0.00021917,6]
[366361594,1750212633740,-460.0,0.00021917,6]
[366361595,1750212633750,-524.0719752,0.00021917,6]
[366361596,1750212633762,-460.0,0.00021917,6]
[366361597,1750212633772,-460.0,0.00021917,6]
[366361598,1750212633781,-460.0,0.00021917,6]
[366361599,1750212633791,-450.86291615,0.00021917,6]
[366361600,1750212633801,-460.0,0.00021917,6]
[366361601,1750212633811,-386.11170303,0.00021917,6]
[366361602,1750212633821,-475.30344357,0.00021917,6]
[366361603,1750212633831,-690.43,0.00021917,6]
[366361604,1750212633840,-524.38444074,0.00021917,6]
[366361605,1750212633850,-430.52062104,0.00021917,2]
[366361606,1750212633860,-460.0,0.00021917,6]
[366361607,1750212633870,-450.14766762,0.00021917,6]
[366361608,1750212633881,-473.19275409,0.00021917,6]
[366361609,1750212633890,-445.38364448,0.00021917,6]
[366361610,1750212633900,-460.0,0.00021917,6]
[366361611,1750212633909,-460.0,0.00021917,6]
[366361612,1750212633919,-460.0,0.00021917,6]
[366361613,1750212634074,-460.0,0.00021917,6]
[366361614,1750212634085,-498.3250849,0.00021917,6]
[366361615,1750212634095,-460.0,0.00021917,6]
[366361616,1750212634106,-460.0,0.00021917,6]
[366361617,1750212634115,-460.0,0.00021917,6]
[366361618,1750212634125,-460.0,0.00021917,6]
[366361619,1750212634135,-433.6285823,0.00021917,6]
[366361620,1750212634145,-460.0,0.00021917,6]
[366361621,1750212634155,-460.0,0.00021917,6]
[366361622,1750212634165,-460.0,0.00021917,6]
[366361623,1750212634175,-385.4094676,0.00021917,6]
[366361624,1750212634185,-460.0,0.00021917,6]
[366361625,1750212634195,-529.289144,0.00021951,9]
[366361626,1750212634205,-529.289144,0.00021986,9]
[366361627,1750212634215,-529.289144,0.00022022,6]
[366361628,1750212634225,-507.36702975,0.00022026,2]
[366361629,1750212634235,-205.0073179,0.00022027,6]
[366361630,1750212634244,-460.0,0.00022027,6]
[366361631,1750212634254,-460.0,0.00022027,6]
[366361632,1750212634263,-456.10924264,0.00022027,6]
[366361633,1750212634273,-463.26975137,0.00022027,6]
[366361634,1750212634282,-329.75516869,0.00022027,6]
[366361635,1750212634292,-478.70637016,0.00022027,6]
[366361636,1750212634301,-211.99726783,0.00022027,6]
[366361637,1750212634311,-460.0,0.00022027,6]
[366361638,1750212634320,-460.0,0.00022027,6]
[366361639,1750212634330,-430.77806608,0.00022027,6]
[366361640,1750212634340,-540.0,0.00022027,6]
[366361641,1750212634349,-460.0,0.00022027,6]
[366361642,1750212634359,-460.0,0.00022027,6]
[366361643,1750212634368,-418.39124219,0.00022027,6]
[366361644,1750212634378,-460.0,0.00022027,6]
[366361645,1750212634387,-460.0,0.00022027,6]
[366361646,1750212634397,-460.0,0.00022027,6]
[366361647,1750212634406,-460.0,0.00022027,6]
[366361648,1750212634415,-460.0,0.00022027,6]
[366361649,1750212634425,-372.15833713,0.00022027,6]
[366361650,1750212634434,-460.0,0.00022027,6]
[366361651,1750212634444,-460.0,0.00022027,6]
[366361652,1750212634453,-460.0,0.00022027,6]
[366361653,1750212634462,-460.0,0.00022027,6]
[366361654,1750212634471,-460.0,0.00022027,6]
[366361655,1750212634480,-460.0,0.00022027,6]
[366361656,1750212634489,-460.0,0.00022027,6]
[366361657,1750212634498,-537.0,0.00022027,6]
[366361658,1750212634508,-460.0,0.00022027,6]
[366361659,1750212634517,-460.0,0.00022027,6]
[366361660,1750212634527,-460.0,0.00022027,6]
[366361661,1750212634536,-460.0,0.00022027,6]
[366361662,1750212634545,-460.0,0.00022027,6]
[366361663,1750212634554,-482.19589228,0.00022027,6]
[366361664,1750212634564,-487.91366014,0.00022027,6]
[366361665,1750212634574,-460.0,0.00022027,6]
[366361666,1750212634583,-460.0,0.00022027,6]
[366361667,1750212634594,-460.0,0.00022027,6]
[366361668,1750212634603,-460.0,0.00022027,6]
[366361669,1750212634612,-460.0,0.00022027,6]
[366361670,1750212634622,-460.0,0.00022027,6]
[366361671,1750212634631,-460.0,0.00022027,6]
[366361672,1750212634640,-280.40381411,0.00022027,6]
[366361673,1750212634650,-420.0,0.00022027,6]
[366361674,1750212634660,-460.0,0.00022027,6]
[366361675,1750212634669,-460.0,0.00022027,6]
[366361676,1750212634678,-460.0,0.00022027,6]
[366361677,1750212634688,-460.0,0.00022027,6]
[366361678,1750212634697,-460.0,0.00022027,6]
[366361679,1750212634707,-439.54565803,0.00022027,6]
[366361680,1750212634717,-460.0,0.00022027,6]
[366361681,1750212634727,-460.0,0.00022027,6]
[366361682,1750212634737,-690.43,0.00022027,6]
[366361683,1750212634746,-460.0,0.00022027,6]
[366361684,1750212634758,-460.0,0.00022027,6]
[366361685,1750212634772,-372.59023255,0.00022027,6]
[366361686,1750212634782,-460.0,0.00022027,6]
[366361687,1750212634792,-460.0,0.00022027,6]
[366361688,1750212634803,-420.0,0.00022027,6]
[366361689,1750212634814,-460.0,0.00022027,6]
[366361690,1750212634824,-460.0,0.00022027,6]
[366361691,1750212634835,-460.0,0.00022027,6]
[366361692,1750212634847,-460.0,0.00022027,6]
[366361693,1750212634858,-460.0,0.00022027,6]
[366361694,1750212634869,-460.0,0.00022027,6]
[366361695,1750212634879,-460.0,0.00022027,6]
[366361696,1750212634889,-529.289144,0.00022057,14]
[366361697,1750212634899,-206.60101016,0.0002209,6]
[366361698,1750212634910,-529.289144,0.00022092,9]
[366361699,1750212634919,-494.6,0.00022126,3]
[366361700,1750212634929,-501.256283,0.00022126,2]
[366361701,1750212634939,-529.289144,0.00022128,14]
[366361702,1750212634949,-445.23467184,0.00022135,2]
[366361703,1750212634959,-500.0,0.00022135,2]
[366361704,1750212634969,-460.0,0.00022136,6]
[366361705,1750212634979,-460.0,0.00022136,6]
[366361706,1750212634988,-460.0,0.00022136,6]
[366361707,1750212634998,-460.0,0.00022136,6]
[366361708,1750212635008,-460.0,0.00022136,6]
[366361709,1750212635018,-460.0,0.00022136,6]
[366361710,1750212635028,-419.1547185,0.00022136,6]
[366361711,1750212635037,-460.0,0.00022136,6]
[366361712,1750212635047,-460.0,0.00022136,6]
[366361713,1750212635057,-460.0,0.00022136,6]
[366361714,1750212635067,-460.0,0.00022136,6]
[366361715,1750212635077,-460.0,0.00022136,6]
[366361716,1750212635087,-460.0,0.00022136,6]
[366361717,1750212635099,-460.0,0.00022136,6]
[366361718,1750212635109,-482.34015609,0.00022136,6]
[366361719,1750212635119,-460.0,0.00022136,6]
[366361720,1750212635130,-460.0,0.00022136,6]
[366361721,1750212635140,-460.0,0.00022136,6]
[366361722,1750212635150,-460.0,0.00022136,6]
[366361723,1750212635159,-460.0,0.00022136,6]
[366361724,1750212635170,-460.0,0.00022136,6]
[366361725,1750212635180,-460.0,0.00022136,6]
[366361726,1750212635189,-460.0,0.00022136,6]
[366361727,1750212635200,-460.0,0.00022136,6]
[366361728,1750212635210,-501.70373487,0.00022136,6]
[366361729,1750212635219,-460.0,0.00022136,6]
[366361730,1750212635228,-460.0,0.00022136,6]
[366361731,1750212635237,-460.0,0.00022136,6]
[366361732,1750212635246,-460.0,0.00022136,6]
[366361733,1750212635256,-583.54,0.00022136,6]
[366361734,1750212635265,-558.42055745,0.00022136,6]
[366361735,1750212635276,-460.0,0.00022136,6]
[366361736,1750212635290,-690.43,0.00022136,6]
[366361737,1750212635300,-316.4889993,0.00022136,6]
[366361738,1750212635308,-460.0,0.00022136,6]
[366361739,1750212635318,-426.58798993,0.00022136,6]
[366361740,1750212635327,-460.0,0.00022136,6]
[366361741,1750212635338,-460.0,0.00022136,6]
[366361742,1750212635350,-425.65709177,0.00022136,6]
[366361743,1750212635362,-460.0,0.00022136,6]
[366361744,1750212635372,-460.0,0.00022136,6]
[366361745,1750212635382,-460.0,0.00022136,6]
[366361746,1750212635391,-460.0,0.00022136,6]
[366361747,1750212635401,-643.48545309,0.00022159,2]
[366361748,1750212635410,-529.289144,0.00022163,13]
[366361749,1750212635420,-529.289144,0.00022198,9]
[366361750,1750212635430,-529.289144,0.00022234,6]
[366361751,1750212635439,-460.0,0.00022246,6]
[366361752,1750212635449,-460.0,0.00022246,6]
[366361753,1750212635458,-460.0,0.00022246,6]
[366361754,1750212635467,-460.0,0.00022246,6]
[366361755,1750212635477,-440.0,0.00022246,6]
[366361756,1750212635486,-460.0,0.00022246,6]
[366361757,1750212635496,-460.0,0.00022246,6]
[366361758,1750212635505,-460.0,0.00022246,6]
[366361759,1750212635515,-496.82494187,0.00022246,6]
[366361760,1750212635524,-460.0,0.00022246,6]
[366361761,1750212635533,-460.0,0.00022246,6]
[366361762,1750212635542,-402.27,0.00022246,6]
[366361763,1750212635552,-502.17,0.00022246,6]
[366361764,1750212635561,-690.43,0.00022246,6]
[366361765,1750212635571,-460.0,0.00022246,6]
[366361766,1750212635580,-460.0,0.00022246,6]
[366361767,1750212635589,-460.0,0.00022246,6]
[366361768,1750212635600,-529.289144,0.00022269,2]
[366361769,1750212635609,-206.60101016,0.00022281,6]
[366361770,1750212635618,-492.93507731,0.00022304,8]
[366361771,1750212635634,-36.35406669,0.00022304,8]
[366361772,1750212635644,-529.289144,0.00022339,12]
[366361773,1750212635654,-412.40586423,0.00022356,6]
[366361774,1750212635713,-500.0,0.00022135,2]
[366361775,1750212635723,-47.59413577,0.00022356,6]
[366361776,1750212635743,-460.0,0.00022356,6]
[366361777,1750212635754,-460.0,0.00022356,6]
[366361778,1750212635767,-460.0,0.00022356,6]
[366361779,1750212635777,-460.0,0.00022356,6]
[366361780,1750212635787,-460.0,0.00022356,6]
[366361781,1750212635797,-508.14151291,0.00022356,6]
[366361782,1750212635806,-460.0,0.00022356,6]
[366361783,1750212635816,-690.43,0.00022356,6]
[366361784,1750212635826,-460.0,0.00022356,6]
[366361785,1750212635835,-460.0,0.00022356,6]
[366361786,1750212635845,-413.66,0.00022356,6]
[366361787,1750212635855,-281.85395069,0.00022375,9]
[366361791,1750212638196,-500.0,0.00022135,2]
[366361792,1750212638205,-175.67028882,0.00022135,2]
[366361793,1750212638215,-500.0,0.00022135,2]
[366361794,1750212638224,-500.0,0.00022135,2]
[366361795,1750212638233,-247.43519331,0.00022375,9]
[366361796,1750212638242,-529.289144,0.0002241,13]
[366361798,1750212638252,-399.99442285,0.00022445,2]
[366361800,1750212638263,-129.29472115,0.00022445,2]
[366361802,1750212638272,-460.0,0.00022465,6]
[366361804,1750212638282,-460.0,0.00022465,6]
[366361806,1750212638291,-254.23,0.00022465,6]
[366361808,1750212638301,-283.68212219,0.00022465,6]
[366361850,1750212640300,-176.31787781,0.00022465,6]
[366361852,1750212640311,-460.0,0.00022465,6]
[366361853,1750212640320,-166.23612323,0.00022465,6]
[366362815,1750212711554,409.0,0.000244,120]
[366362816,1750212767667,1409.21462593,0.00025155,120]
[366362828,1750213490772,162.240238,0.00013699,2]
[366362829,1750213555094,-667.42000033,0.00019547,4]
[366362830,1750213555116,-400.66,0.00019744,2]
[366362831,1750213555136,-190.39945209,0.00020146,2]
[366362832,1750213555158,-286.17936165,0.00021539,2]
[366362833,1750213629209,-761.59609154,0.00019547,2]
[366362834,1750213645112,-645.6421076,0.00019547,2]
[366362835,1750213660712,-1245.90943046,0.00019547,2]
[366362836,1750213660736,-391.92,0.00019735,2]
[366362837,1750213660763,-432.89439909,0.00021529,2]
[366362838,1750213688008,5188.07115776,0.00025155,120]
[366362844,1750213745090,-155.232,0.000195,5]
[366362845,1750213746662,-199.65308334,0.000195,5]
[366362846,1750213746683,-384.57,0.00019738,2]
[366362847,1750213746704,-2346.8523704,0.00021314,4]
[366362848,1750213746723,-1663.54731855,0.000215,2]
[366362849,1750213746743,-769.13,0.00021532,2]
[366362853,1750213761195,18.50546723,0.00019737,2]
[366362857,1750213827240,361.0,0.00023,30]
[366362879,1750213832461,-358.12453277,0.00019737,2]
[366362883,1750213832471,-4726.75092139,0.00021431,2]
[366362885,1750213832480,-753.26,0.00021531,2]
[366362887,1750213832490,-329.0,0.0002176,2]
[366362889,1750213832499,-329.0,0.0002179,2]
[366362891,1750213832509,-182.702,0.00021916,2]
[366362893,1750213832519,-177.414,0.00021916,2]
[366362894,1750213832528,-300.0,0.00021916,2]
[366362895,1750213832538,-998.0,0.00021916,2]
[366362896,1750213832548,-460.0,0.00021917,6]
[366362897,1750213832558,-460.0,0.00021917,6]
[366362898,1750213832567,-460.0,0.00021917,6]
[366362899,1750213832577,-460.0,0.00021917,6]
[366362900,1750213832587,-460.0,0.00021917,6]
[366362901,1750213832597,-152.49284995,0.00021917,6]
[366362902,1750213832607,-450.02678343,0.00021917,6]
[366362903,1750213832617,-460.0,0.00021917,6]
[366362904,1750213832627,-548.5918842,0.00021917,6]
[366362905,1750213832636,-461.26898846,0.00021917,6]
[366362906,1750213832646,-469.40049781,0.00021917,6]
[366362907,1750213832655,-195.3903636,0.00021917,6]
[366362908,1750213832666,-500.0,0.00021917,6]
[366362909,1750213832675,-467.1192298,0.00021917,6]
[366362911,1750213832685,-476.04198077,0.00021917,6]
[366362913,1750213832694,-470.49668149,0.00021917,6]
[366362914,1750213832704,-443.72384125,0.00021917,6]
[366362915,1750213832713,-443.9316679,0.00021917,6]
[366362916,1750213832724,-462.2140405,0.00021917,6]
[366362917,1750213832735,-451.88892705,0.00021917,6]